Cogmind - Beta 14 @@@ ROGUE MODE // 2024.09.02 @ 02:44:37 Player: grhkm Result: Destroyed by G-47 Trooper with Particle Gun Performance ------------- Evolutions (2) 1000 Regions Visited (3) 600 Robots Destroyed (67) 335 Value Destroyed (1488) 1488 Prototype IDs (3) 60 Alien Tech Used (0) 0 Bonus (38) 38 TOTAL SCORE: 3521 Bonus ------- High Alert Combat Kills 38 Cogmind --------- Core Integrity 0/550 Matter 288/300 Energy 82/100 System Corruption 3% Temperature Cool (13) Movement Core (450) Ox8 Location -8/Materials Parts ------- > --- POWER (1) -------- (None) > --- PROPULSION (4) --- (None) > --- UTILITY (4) ------ Large Storage Unit Terrain Scan Processor Targeting Computer > --- WEAPON (2) ------- Advanced Beam Rifle Enhanced Autogun > --- INVENTORY (15) --- Ion Engine Shock Rifle Heavy EM Shotgun Medium Laser Beam Rifle Particle Gun Pulse Rifle Heavy Mace Peak State ------------ > --- POWER ------------ Deuterium Engine > --- PROPULSION ------- Improved Aluminum Leg Carbon-fiber Leg Carbon-fiber Leg Carbon-fiber Leg > --- UTILITY ---------- Large Storage Unit Advanced Targeting Computer Light Armor Plating Improved Recalibrator > --- WEAPON ----------- Shock Rifle Heavy EM Shotgun > --- INVENTORY -------- Ion Engine Improved Ion Engine Improved Ion Engine Aluminum Leg Aluminum Leg Aluminum Leg Carbon-fiber Leg Carbon-fiber Leg Particle Charger Weapon Shielding Medium Laser Beam Rifle Shotgun [Rating: 34] Favorites ----------- Power Improved Ion Engine Engine Improved Ion Engine Power Core Light Nuclear Core Propulsion Carbon-fiber Leg Leg Carbon-fiber Leg Utility Large Storage Unit Device Terrain Scanner Storage Large Storage Unit Processor Terrain Scan Processor Protection Light Armor Plating Weapon Assault Rifle Energy Gun Shock Rifle Ballistic Gun Assault Rifle Build | -11 -10 -9 -8 ------- Run | Yrd Mat Mat Mat Slots Evolved 4 | . . 2 2 Power . | . . . . Propulsion 2 | . . 1 1 Utility 2 | . . 1 1 Weapon . | . . . . Parts Attached 81 | 6 7 13 55 Power 14 | 1 1 3 9 Engine 13 | 1 1 3 8 Core 1 | . . . 1 Reactor . | . . . . Propulsion 29 | 2 3 5 19 Treads . | . . . . Leg 29 | 2 3 5 19 Wheel . | . . . . Hover . | . . . . Flight . | . . . . Utility 18 | 1 2 2 13 Device 6 | . . 1 5 Storage 2 | 1 1 . . Processor 5 | . 1 . 4 Hackware . | . . . . Protection 5 | . . 1 4 Artifact . | . . . . Weapon 20 | 2 1 3 14 Energy Gun 7 | . . . 7 Energy Cannon . | . . . . Ballistic Gun 13 | 2 1 3 7 Ballistic Cannon . | . . . . Launcher . | . . . . Special Weapon . | . . . . Impact Weapon . | . . . . Slashing Weapon . | . . . . Piercing Weapon . | . . . . Special Melee Weapon . | . . . . Unidentified Prototypes 3 | . . . 3 Corrupted Parts 2 | . . . 2 System Corruption 3 | . . . 3 Parts Lost 28 | . 1 1 26 Power 7 | . 1 1 5 Propulsion 12 | . . . 12 Utility 7 | . . . 7 Weapon 2 | . . . 2 Highest Loss Streak 10 | . 1 1 10 To Critical Strikes . | . . . . Average Slot Usage (%) 95 | . 94 100 94 Engine 9 | . 13 11 8 Leg 32 | . 28 33 33 Device 3 | . . 3 4 Storage 10 | . 14 11 9 Processor 10 | . 9 11 10 Protection 7 | . . 7 9 Energy Gun 7 | . . . 13 Ballistic Gun 12 | . 28 22 4 Peak Build Rating 34 | 6 8 15 34 Average Rating 19 | 4 7 13 26 On Entrance 7 | . 6 8 15 Naked Turns . | . . . . Heaviest Build 44 | 13 29 36 44 Greatest Support 60 | 20 20 33 60 Greatest Overweight (x) 9 | 3 1 1 9 Average Overweight (x) . | . . . . Largest Inventory Capacity 15 | 8 15 15 15 Average Capacity 13 | 7 9 15 15 Most Carried 15 | 3 9 15 15 Average Carried 10 | 1 4 11 12 Final Capacity 15 | 8 15 15 15 Final Carried 14 | 2 9 14 8 Class Distribution -------------------- 64% | Mutant 35% | Scavenger-Mutant Dominant Class ---------------- Mutant | -10/Materials Scavenger-Mutant | -9/Materials Mutant | -8/Materials Resources | -11 -10 -9 -8 ----------- Run | Yrd Mat Mat Mat Matter Collected 1654 | 276 253 414 711 Remotely . | . . . . Salvage Created 2256 | 24 290 614 1328 Parts 149 | 1 21 39 88 Haulers Intercepted 2 | . . 1 1 Recyclers Shooed 2 | . 1 1 . Parts Field Recycled . | . . . . Retrieved Matter . | . . . . Parts Self-Destructed . | . . . . Prevented . | . . . . Kills | -11 -10 -9 -8 ------- Run | Yrd Mat Mat Mat Combat Hostiles Destroyed 43 | . 10 10 23 Guns 42 | . 10 10 22 AOE 1 | . . . 1 Classes Destroyed 14 | 1 3 5 5 Worker 7 | . . 1 6 Builder 9 | . 1 1 7 Tunneler 1 | 1 . . . Hauler 2 | . . 1 1 Recycler 1 | . . 1 . Mechanic 1 | . . . 1 Watcher 3 | . . 1 2 Swarmer 14 | . 6 . 8 Cutter 3 | . . . 3 Grunt 17 | . 4 7 6 Sentry 5 | . . 3 2 Specialist 2 | . . . 2 Hunter 1 | . . . 1 Heavy 1 | . . . 1 Best Kill Streak 5 | 1 3 4 5 Combat Bots Only 5 | . 3 2 5 Max Kills in Single Turn 2 | 1 1 1 2 Gunslinging . | . . . . Exploded 1 | . . . 1 Melee . | . . . . Uniques/NPCs Destroyed . | . . . . Combat | -11 -10 -9 -8 -------- Run | Yrd Mat Mat Mat Hostile Shots Fired 337 | . 67 52 218 Missed 94 | . 21 17 56 Damage Taken 4023 | . 469 457 3097 Core 703 | . 117 29 557 Absorbed by Shields . | . . . . Redirected to Shielding 54 | . . . 54 Core Remaining (%) 81 | 100 53 92 . Volleys Fired 193 | 4 35 45 109 Largest 2 | 2 2 2 2 Hottest 106 | 40 40 46 106 Shots Fired 385 | 8 70 90 217 Gun 385 | 8 70 90 217 Cannon . | . . . . Launcher . | . . . . Special . | . . . . Kinetic 240 | 8 70 90 72 Thermal 78 | . . . 78 Explosive . | . . . . Electromagnetic 67 | . . . 67 Robot Hit Streak 13 | 4 11 7 13 Robot Miss Streak 5 | . 5 4 4 Penetration Max . | . . . . Secondary Targets 4 | . . . 4 Max Gunslinging Chain 1 | . . . 1 Shots Hit Robots 244 | 4 40 50 150 Core Hits 114 | 2 16 28 68 Critical Kills 1 | . 1 . . Critical Parts Destroyed . | . . . . Critical Strikes 6 | . 1 . 5 Burn 4 | . . . 4 Destroy 1 | . 1 . . Corrupt 1 | . . . 1 Melee Attacks . | . . . . Impact . | . . . . Slashing . | . . . . Piercing . | . . . . Sneak Attacks . | . . . . Combat Hostiles . | . . . . Follow-up Attacks . | . . . . Damage Inflicted 3987 | 53 484 698 2752 Guns 3827 | 53 484 698 2592 Cannons . | . . . . Explosions 160 | . . . 160 Melee . | . . . . Ramming . | . . . . Kinetic 1987 | 53 484 698 752 Thermal 993 | . . . 993 Explosive 87 | . . . 87 Electromagnetic 920 | . . . 920 Impact . | . . . . Slashing . | . . . . Piercing . | . . . . Highest Corruption 3 | . . . 3 Average Corruption 1 | . . . 1 Corruption Purged . | . . . . Corruption Blocked . | . . . . Effects 4 | . . . 4 Message Errors 1 | . . . 1 Matter Fused 1 | . . . 1 Data Loss (minor) 2 | . . . 2 Overload Shots . | . . . . Overflow Damage 16 | . . . 16 Projectiles . | . . . . Explosions 16 | . . . 16 Melee . | . . . . Knockbacks . | . . . . Impact . | . . . . Kinetic . | . . . . Secondary . | . . . . Self-Inflicted Damage 155 | . . . 155 Shots 2 | . . . 2 Rammed . | . . . . Targets Rammed . | . . . . Kicked . | . . . . Crushed . | . . . . Highest Temperature 463 | . 20 2 463 Average Temperature 98 | . 10 1 104 Received Heat Transfer 1107 | . 177 174 756 Effects 3 | . . . 3 Shutdowns 1 | . . . 1 Energy Bleed 1 | . . . 1 Short Circuit 1 | . . . 1 Siege Activations . | . . . . Robots Corrupted . | . . . . Combat Hostiles . | . . . . Parts Fried 11 | . . . 11 Impact Corruptions . | . . . . Robots Melted . | . . . . Combat Hostiles . | . . . . Parts Melted 5 | . . . 5 Heat Transferred 2542 | . . . 2542 Parts Sabotaged . | . . . . Parts Stolen . | . . . . Parts Stripped . | . . . . Power Chain Reactions 1 | . . . 1 Alert | -11 -10 -9 -8 ------- Run | Yrd Mat Mat Mat Peak Influence 454 | 5 334 437 454 Initial 141 | . 3 141 117 Average 287 | 1 177 287 336 Maximum Alert Level 2 | . 1 2 2 Low Security (%) 19 | 100 68 12 3 Level 1 65 | . 31 76 74 Level 2 15 | . . 10 22 Level 3 . | . . . . Level 4 . | . . . . Level 5 . | . . . . High Security . | . . . . Max Security . | . . . . Squads Dispatched 10 | . 1 3 6 Investigation 1 | . . 1 . Extermination . | . . . . Reinforcement 9 | . 1 2 6 Assault . | . . . . Garrison . | . . . . Intercept . | . . . . Searches Triggered . | . . . . Construction Impeded 1 | . . . 1 Haulers Reinforced . | . . . . Active Scanning Responses . | . . . . Cargo Convoy Interrupts . | . . . . Stealth | -11 -10 -9 -8 --------- Run | Yrd Mat Mat Mat Distress Signals 4 | . 1 1 2 Communications Jammed . | . . . . Distress Signals . | . . . . Times Spotted 72 | . 16 15 41 Peak Tracking Total 5 | . 4 5 5 Tactical Retreats 8 | . 2 . 6 Traps | -11 -10 -9 -8 ------- Run | Yrd Mat Mat Mat Traps Triggered 1 | . . 1 . Indirectly . | . . . . Trap Hack Attempts . | . . . . Triggered . | . . . . Disarmed . | . . . . Reprogrammed . | . . . . Reused . | . . . . Traps Extracted . | . . . . Installed . | . . . . Triggered . | . . . . Machines | -11 -10 -9 -8 ---------- Run | Yrd Mat Mat Mat Machines Disabled 1 | . . . 1 Max in Single Turn 1 | . . . 1 Machines Repaired . | . . . . Machines Dismantled . | . . . . Machines Sabotaged . | . . . . Overloaded Fab Kills . | . . . . Hacking | -11 -10 -9 -8 --------- Run | Yrd Mat Mat Mat Machines Accessed 6 | . 2 3 1 Terminals 5 | . 2 2 1 Fabricators . | . . . . Repair Stations . | . . . . Recycling Units . | . . . . Scanalyzers 1 | . . 1 . Garrison Access . | . . . . Total Hacks 18 | . 7 7 4 Successful 10 | . 2 7 1 Failed 8 | . 5 . 3 Catastrophic . | . . . . Database Lockouts . | . . . . Manual 4 | . . 1 3 Terminals 15 | . 7 4 4 Fabricators . | . . . . Repair Stations . | . . . . Recycling Units . | . . . . Scanalyzers 3 | . . 3 . Garrison Access . | . . . . Terminal Hacks 6 | . 2 3 1 Alert Level 1 | . . 1 . Locate Traps 1 | . 1 . . Dispatch Records 1 | . . 1 . Recall Investigation 1 | . . 1 . Zone Layout 2 | . 1 . 1 Fabricator Hacks . | . . . . Repair Station Hacks . | . . . . Recycling Unit Hacks . | . . . . Scanalyzer 3 | . . 3 . Insert Component 1 | . . 1 . Analyze 2 | . . 2 . Garrison Access Hacks . | . . . . Unauthorized Hacks 1 | . . 1 . Terminals 1 | . . 1 . Botnet 1 | . . 1 . Fabricators . | . . . . Repair Stations . | . . . . Recycling Units . | . . . . Scanalyzers . | . . . . Garrison Access . | . . . . Data Cores Recovered . | . . . . Used . | . . . . Hacking Detections 5 | . 2 2 1 Full Trace Events 2 | . 1 . 1 Feedback Events . | . . . . Feedback Blocked . | . . . . Robot Schematics Acquired . | . . . . Robots Built . | . . . . Authchips . | . . . . Time . | . . . . Total Robot Build Rating . | . . . . Part Schematics Acquired 1 | . . 1 . Parts Built . | . . . . Authchips . | . . . . Time . | . . . . Total Part Build Rating . | . . . . Parts Repaired . | . . . . Time . | . . . . Parts Recycled . | . . . . Recycled Matter . | . . . . Retrieved Matter . | . . . . Retrieved Components . | . . . . Parts Scanalyzed 1 | . . 1 . Part Schematics Acquired 1 | . . 1 . Parts Damaged . | . . . . Bothacking | -11 -10 -9 -8 ------------ Run | Yrd Mat Mat Mat Used RIF Installer . | . . . . Robots Hacked . | . . . . Non-combat . | . . . . Combat . | . . . . Robot Hacks Applied . | . . . . Relay Couplers Released . | . . . . Fabnet Peak Effective % . | . . . . Robots Rewired . | . . . . Allies Hacked . | . . . . Hacks Repelled . | . . . . Allies | -11 -10 -9 -8 -------- Run | Yrd Mat Mat Mat Total Allies . | . . . . Largest Group . | . . . . Highest-Rated Group . | . . . . Highest-Rated Ally . | . . . . Total Orders . | . . . . Ally Attacks . | . . . . Total Damage . | . . . . Kills . | . . . . Allies Corrupted . | . . . . Allies Melted . | . . . . Intel | -11 -10 -9 -8 ------- Run | Yrd Mat Mat Mat Robot Analysis Total . | . . . . Derelict Logs Recovered . | . . . . Drone Launches . | . . . . Drone Recoveries . | . . . . Exploration | -11 -10 -9 -8 ------------- Run | Yrd Mat Mat Mat Turns Passed 2323 | 80 393 507 1343 Spaces Moved 1055 | 44 200 183 628 Core 15 | 11 . . 4 Treads . | . . . . Legs 1040 | 33 200 183 624 Wheels . | . . . . Hover . | . . . . Flight . | . . . . Fastest Speed 50 | 50 120 120 120 Average Speed 135 | 131 133 177 123 Slowest Speed 500 | 200 190 190 500 Overloaded Moves . | . . . . Propulsion Burnouts . | . . . . Robots Hopped . | . . . . Cave-ins Triggered . | . . . . Exploration Rate (%) 23 | 4 37 22 32 Regions Visited 3 Branch Regions . Pre-discovered Areas . | . . . . Known Exits Taken . | . . . . Unknown Exits Taken 3 | 1 1 1 . Scrap Searched . | . . . . Spaces Dug . | . . . . Terrain Destroyed 33 | . . . 33 Melee . | . . . . Projectile . | . . . . AOE 33 | . . . 33 Terrain Rammed . | . . . . Walls Destroyed . | . . . . Machines Disabled . | . . . . Actions | -11 -10 -9 -8 --------- Run | Yrd Mat Mat Mat Total 1563 | 56 255 273 979 Wait 186 | . 11 23 152 Move 1052 | 43 199 182 628 Hop . | . . . . Pick Up 29 | 3 3 5 18 Fast Attach 13 | 5 1 . 7 Attach 29 | 1 1 3 24 Detach 3 | . . . 3 Swap 39 | . 5 10 24 Drop 19 | . . 5 14 Fire 193 | 4 35 45 109 Melee . | . . . . Ram . | . . . . Kick . | . . . . Crush . | . . . . Escape Stasis . | . . . . Rewire . | . . . . Trap . | . . . . Miscellaneous . | . . . . Route ------- -11/Scrapyard -10/Materials -9/Materials -8/Materials (discovered 1 exit: [*Fac]) History --------- Turn | Location | Event 28 | -11/Scrapyard | Discovered new exit (range 16) 81 | -11/Scrapyard | Entered Materials 273 | -10/Materials | Discovered new exit (range 9) 308 | -10/Materials | Build established: Mutant 474 | -10/Materials | Entered another Materials area 474 | -9/Materials | Evolved 2 slots: Propulsion x1, Utility x1 770 | -9/Materials | Build established: Scavenger-Mutant 908 | -9/Materials | Discovered new exit (range 16) 981 | -9/Materials | Entered another Materials area 981 | -8/Materials | Evolved 2 slots: Propulsion x1, Utility x1 1464 | -8/Materials | Build established: Mutant 1993 | -8/Materials | Lost 4 parts (1p1n1u1w) 2081 | -8/Materials | Core integrity fell below 50% 2133 | -8/Materials | Lost 6 parts (1p3n2u) 2249 | -8/Materials | Core integrity fell below 20% 2286 | -8/Materials | Discovered new exit (range 10) 2293 | -8/Materials | Lost 10 parts (2p6n1u1w) 2324 | -8/Materials | Destroyed by G-47 Trooper with Particle Gun Last Messages --------------- K-01 Serf destroyed. Acquired 4 matter. K-01 Serf collects debris. ALERT: Construction progress impeded, dispatching reinforcements to local area. Acquired 4 matter. K-01 Serf collects debris. EXIT=FOUND K-01 Serf collects debris. Acquired Pulse Rifle. R-06 Scavenger collects Lgt. Ion Engine. K-01 Serf collects debris. R-06 Scavenger collects Arm. Treads. R-06 Scavenger collects Lgt. Treads. Aluminum Leg destroyed. R-06 Scavenger collects Wheel. Lgt. Ion Engine destroyed. U%5CYOPL/J3CX /STJV=R9C U-05 Engineer builds a Wall. G-47 Trooper destroyed. Map ----- +----------------------------------------------------+ | """# #####??????????????????????????????? | | """# + #??????????????????????????????? | | """# # #??????????????????????????????? | | """# # #??????????????????????????????? | | # # #??????????????????????????????? | | ###### # #??????????????????????????????? | | ?????# # #??????????????????????????????? | | #########+##### #??????????????????????????????? | | # #? ????????????????????????????? | | # #? ????????????????????????????? | | #% ## ????????????????????????????? | | +| ######### ????????????????????????????? | | =#*= #?#####?# ????????????????????????????? | | # % #? #?# ????????????????????????????? | | #%= #? #?# ###?????????????????????????? | | #=| #? ### #????Y####????????????????? | | ########!% ## +? #? #????????????????? | | ???#???#%* ## #?# ##""" #????????????????? | | #??????#|=%## #?# ##"R #????????????????? | | ?#?##??#%%!## #?# ##""" #????????????????? | | ???????#% %## #?# ## "" #????????????????? | | #?????##%*=## ###% ## ?????????????????? | | #???#?#!= ###+###!! # """" ?????????????????? | | ####### = %=% % % %! # """" #????????????????? | | =% % %%[*=%=%!%%! %g """" #????????????????? | | % !!/=*%|*!! #@ #????????????????? | | ####### % #####"#[ # #????????????????? | | ???################# ##########????????????????? | | ???????????????????# #?????????????????????????? | | ???????????????????# #?????????????????????????? | | ??#????????????????+ +?????????????????????????? | | #??????????????????# % #?????????????????????????? | | ??#????????????????# < #?????????????????????????? | | ?#?????????????????# #?????????????????????????? | | ??#????????????????#####?????????????????????????? | | #????????????????????????????????????????????????? | | ?????????????????????????????????????????????????? | | ?#???????????????????????????????????????????????? | | ?????????????????????????????????????????????????? | | ?????????????????????????????????????????????????? | | ?????????????????????????????????????????????????? | | ?????????????????????????????????????????????????? | | ?????????????????????????????????????????????????? | | ?????????????????????????????????????????????????? | | ?????????????????????????????????????????????????? | | ?????????????????????????????????????????????????? | | | | | | | | | +----------------------------------------------------+ Best States ------------- Heat Dissipation 45 Energy Generation 14 Energy Capacity 275 Matter Stores 300 Matter Capacity 300 Sight Range 16 Robot Scan Range 15 Terrain Scan Range 14 Terrain Scan Density 85 Armor Coverage 225 Weapon Shielding 33 Evasion (%) 55 Targeting Accuracy 8 Particle Charging 15 Item Schematics ----------------- Lgt. Armor Plating | -9/Materials | Scanalyzed Robot Schematics ------------------ None Fabricated ------------ Nothing Alien Tech Used ----------------- None Achievements -------------- None Challenges ------------ None Game ------ Seed TransmissionAdvancedTrident Manual? 0 Play Time 00:29:11 Cumulative 6.2 hours Start 2024.09.02 @ 02:17:23 End 2024.09.02 @ 02:44:37 Sessions 1 Manual Loads 0 Difficulty Rogue Special Mode None Game No. 15 Rogue 15 Adventurer 0 Explorer 0 Win Type - Total 0 Types 0/0/0/0/0/0/0/0/0 Lore% 1 Gallery% 12 Achievement% 10 Wizard Run 0 Options --------- Layout 1 ASCII 0 Keyboard 0 Movement Mouse Keybinds 0 Fullscreen 1 Font 16/Terminus Map View 50x40 Zoom Use 0% Tactical HUD 0 Map Filters NONE Filters NONE Steam 1 RUN: 3df27f66-24eb-41db-98cf-9d081dfacc3a